bitfinex-derivatives/quotes_ETHF0:USTF0_20250404
["timestamp","ask_amount","ask_price","bid_price","bid_amount"]
[1743763996227,1.53198456,1785.1,1784.8,5.9442]
[1743763996425,1.53198456,1785.1,1784.9,1.12058]
[1743763996622,1.53198456,1785.1,1784.8,5.9442]
[1743763996826,1.53198456,1785.1,1784.6,3.2078]
[1743763997129,3.2078,1784.9,1784.4,3.2078]
[1743763997331,2.53681,1784.8,1784.4,3.2078]
[1743763997533,2.53681,1784.8,1784.4,4.58]
[1743763997723,1.12072,1784.7,1784.4,4.58]
[1743763997927,1.4161,1784.6,1784.4,4.58]
[1743763999034,2.5369,1784.6,1784.2,8.88881]
[1743763999231,3.2078,1784.5,1784.1,5.9212]
[1743763999425,3.2078,1784.3,1783.7,5.966]
[1743763999628,3.2078,1784.1,1783.8,40.8]
[1743763999935,3.2078,1783.9,1783.8,40.8]
[1743764001540,3.2078,1783.9,1783.4,3.2078]
[1743764001741,3.2078,1783.7,1783.0,9.1489]
[1743764002033,3.2078,1783.5,1783.1,40.8]
[1743764002239,3.2078,1783.7,1783.2,3.2078]
[1743764002438,4.58138456,1784.2,1783.2,3.2078]
[1743764002439,1.5064,1784.0,1783.7,1.12133]
[1743764002738,1.5064,1784.0,1783.6,1.12138]
[1743764002938,1.5064,1784.0,1783.7,1.12132]
[1743764003137,1.5064,1784.0,1783.6,3.2078]
[1743764003439,0.00838456,1784.2,1783.7,1.3741]
[1743764003739,3.2078,1784.0,1783.7,1.3741]
[1743764004334,3.2078,1783.8,1783.5,4.572]
[1743764004640,3.2078,1784.0,1783.7,1.12133]
[1743764004932,3.2078,1784.0,1783.7,1.3741]
[1743764005125,3.2078,1784.0,1783.7,2.49544]
[1743764005331,4.3291,1783.8,1783.3,5.966]
[1743764005535,3.2078,1783.6,1783.0,4.57]
[1743764005836,3.2078,1783.6,1783.1,43.29581]
[1743764006034,3.2078,1783.6,1783.2,1.3741]
[1743764006429,3.2078,1783.6,1783.2,2.49573]
[1743764006626,1.5304,1783.5,1783.2,2.49573]
[1743764007139,1.5304,1783.5,1783.2,1.3741]
[1743764007335,1.5304,1783.5,1783.2,2.49576]
[1743764007634,3.2078,1783.6,1783.2,1.3741]
[1743764007832,1.5304,1783.6,1783.3,1.12155]
[1743764008038,1.5304,1783.6,1783.5,1.12148]
[1743764008438,1.5304,1783.6,1783.4,2.5279]
[1743764008840,1.5304,1783.6,1783.4,2.52789]
[1743764009032,1.5304,1783.6,1783.3,5.68556]
[1743764009435,3.2078,1783.5,1783.3,5.68556]
[1743764009741,1.3975,1783.4,1783.3,5.68556]
[1743764010132,1.3975,1783.4,1783.3,46.48556]
[1743764010336,3.2078,1783.5,1783.4,1.12154]
[1743764010536,3.2078,1783.5,1783.4,2.52214]
[1743764010742,3.2078,1783.5,1783.4,1.4006]
[1743764010943,3.2078,1783.5,1783.3,4.564]
[1743764011142,1.3975,1783.4,1783.3,5.6856]
[1743764011440,5.31478,1783.7,1783.3,5.68558]
[1743764011645,3.2078,1783.5,1783.4,41.92154]
[1743764012138,1.3975,1783.6,1783.5,1.12148]
[1743764012638,1.3975,1783.6,1783.3,4.564]
[1743764012845,1.3975,1783.6,1783.5,1.12148]
[1743764013932,0.305175,1783.6,1783.3,7.36796]
[1743764014138,0.305175,1783.6,1783.5,1.12148]
[1743764015647,3.2078,1784.1,1784.0,1.12116]
[1743764015848,0.00838456,1784.2,1784.1,1.1211]
[1743764016845,0.00838456,1784.2,1784.0,1.12115]
[1743764017047,3.2078,1784.1,1784.0,1.12114]
[1743764017242,3.2078,1784.1,1783.9,4.53]
[1743764017443,0.00838456,1784.2,1784.1,1.1211]
[1743764017642,1.50128456,1784.2,1784.1,1.1211]
[1743764017843,1.50128456,1784.2,1783.9,4.53]
[1743764018042,1.50128456,1784.2,1784.1,1.1211]
[1743764018649,1.50128456,1784.2,1784.0,1.12113]
[1743764018944,1.50128456,1784.2,1784.1,1.1211]
[1743764019850,2.62233456,1784.2,1784.0,1.12114]
[1743764020052,3.2078,1784.1,1783.7,2.80338]
[1743764020351,3.21618456,1784.2,1783.9,1.12122]
[1743764020538,0.00838456,1784.2,1784.1,1.1211]
[1743764021545,3.21618456,1784.2,1783.9,4.516]
[1743764021853,1.4754,1784.1,1784.0,1.12116]
[1743764022052,1.4754,1784.1,1783.6,6.01118]
[1743764022352,0.9743,1784.0,1783.9,1.12122]
[1743764022649,0.9743,1784.0,1783.7,1.12131]
[1743764022851,4.6832,1783.9,1783.8,1.12128]
[1743764023150,1.1213,1783.8,1783.6,1.12136]
[1743764023445,4.6832,1783.7,1783.6,1.12136]
[1743764023651,5.80458,1783.7,1783.5,1.12142]
[1743764023850,4.6832,1783.7,1783.6,1.12141]
[1743764024055,1.4754,1783.7,1783.6,1.12141]
[1743764024550,1.4754,1783.7,1783.3,2.80394]
[1743764024551,3.9754,1783.7,1783.3,2.80394]
[1743764024743,3.2078,1783.6,1783.5,1.12146]
[1743764024948,4.7124,1783.6,1783.4,1.12152]
[1743764025140,4.7124,1783.6,1783.2,2.80416]
[1743764025346,4.7124,1783.6,1783.5,1.12148]
[1743764025648,4.7124,1783.6,1783.3,1.5104]
[1743764025849,4.7124,1783.6,1783.3,1.12155]
[1743764026046,4.7124,1783.6,1783.4,1.1215]
[1743764026260,4.7124,1783.6,1783.1,7.52249]
[1743764026550,5.83382,1783.6,1783.2,2.63205]
[1743764026750,4.7124,1783.6,1783.3,1.12158]
[1743764027444,4.7124,1783.6,1783.3,1.12156]
[1743764027646,4.7124,1783.6,1783.4,1.5104]
[1743764027850,5.83383,1783.6,1783.4,1.5104]
[1743764028263,4.7124,1783.6,1783.4,1.5104]
[1743764028445,4.7124,1783.6,1783.4,2.63193]
[1743764028754,2.62601,1783.6,1783.4,1.5104]
[1743764028950,1.12148,1783.5,1783.2,1.12162]
[1743764029150,1.4614,1783.4,1783.2,1.416]
[1743764029452,2.58295,1783.4,1783.2,1.416]
[1743764029646,4.6692,1783.4,1783.3,40.8]
[1743764029850,4.6692,1783.4,1783.3,41.9216]
[1743764030244,1.4614,1783.4,1783.3,41.9216]
[1743764030553,1.12136,1783.7,1783.3,40.8]
[1743764030754,1.12149,1783.5,1783.3,40.8]
[1743764030954,1.4175,1783.4,1783.3,41.92159]
[1743764031851,3.2078,1783.8,1783.3,40.8]
[1743764032158,4.6253,1783.8,1783.6,1.12138]
[1743764032349,4.6253,1783.8,1783.7,1.12135]
[1743764032553,4.6253,1783.8,1783.4,8.72765]
[1743764032754,4.6253,1783.8,1783.7,1.12135]
[1743764033551,0.9839,1783.9,1783.8,1.12129]
[1743764033857,4.1821,1784.0,1783.9,1.12122]
[1743764034046,3.2078,1784.0,1783.9,1.12122]
[1743764035553,0.00838456,1784.2,1784.1,1.1211]
[1743764035950,3.21618456,1784.2,1784.1,1.1211]
[1743764036258,3.21618456,1784.2,1783.8,5.18018]
[1743764036451,1.501,1784.1,1783.8,5.18018]
[1743764036651,1.501,1784.1,1784.0,1.12116]
[1743764037055,0.00838456,1784.2,1784.1,1.1211]
[1743764038154,5.01e-06,1784.2,1784.1,5.1155]
[1743764040156,5.01e-06,1784.2,1784.1,2.6155]
[1743764040549,5.01e-06,1784.2,1784.1,1.1211]
[1743764040950,3.20780501,1784.2,1784.1,1.1211]
[1743764041359,1.44190501,1784.2,1784.1,1.1211]
[1743764041858,4.64970501,1784.2,1784.1,1.1211]
[1743764042253,4.64970501,1784.2,1784.0,0.00840831]
[1743764042254,1.1211,1784.1,1784.0,0.00840831]
[1743764042456,2.563,1784.1,1784.0,0.00840831]
[1743764042758,3.9419,1784.1,1784.0,0.00840831]
[1743764042953,1.4419,1784.1,1784.0,1.12956831]
[1743764045258,5.01e-06,1784.2,1784.1,1.1211]
[1743764045461,5.01e-06,1784.2,1784.1,7.1362]
[1743764046560,5.01e-06,1784.2,1784.1,1.1211]
[1743764046859,3.20780501,1784.2,1784.0,1.12952831]
[1743764047072,1.5123,1784.1,1784.0,1.12952831]
[1743764047561,5.01e-06,1784.2,1784.1,1.1211]
[1743764048454,5.01e-06,1784.2,1784.1,3.6211]
[1743764049056,5.01e-06,1784.2,1784.1,4.5606]
[1743764050063,5.01e-06,1784.2,1784.1,1.1211]
[1743764051761,5.01e-06,1784.2,1784.1,6.8289]
[1743764052066,5.01e-06,1784.2,1784.1,1.1211]
[1743764052259,5.01e-06,1784.2,1784.0,1.12953831]
[1743764052558,1.1211,1784.1,1784.0,0.00840831]
[1743764052759,1.1211,1784.1,1784.0,1.12956831]
[1743764052760,1.4859,1784.1,1784.0,1.12956831]
[1743764056759,5.01e-06,1784.2,1784.1,1.1211]
[1743764056962,1.53690501,1784.2,1784.1,5.6241]
[1743764057869,1.53690501,1784.2,1784.1,1.1211]
[1743764058970,5.01e-06,1784.2,1784.1,6.8289]
[1743764059160,1.5006,1784.6,1784.5,1.12085]
[1743764060160,1.5006,1784.6,1784.2,5.60495]
[1743764060363,1.5006,1784.6,1784.4,1.12085]
[1743764060364,3.2078,1784.5,1784.4,1.12085]
[1743764060564,4.32867,1784.5,1784.0,7.31418831]
[1743764060760,1.5006,1784.4,1784.3,1.12097]
[1743764061761,1.5006,1784.4,1784.2,1.12099]
[1743764061968,5.0566,1784.3,1784.2,1.12099]
[1743764063266,1.8488,1784.3,1784.2,1.12099]
[1743764064470,5.0566,1784.3,1784.2,1.12099]
[1743764064774,5.0566,1784.3,1784.2,1.12104]
[1743764064973,1.8488,1784.3,1784.2,1.12104]
[1743764065876,1.5006,1784.4,1784.3,1.12097]
[1743764066073,1.5006,1784.4,1784.3,2.52487]
[1743764066477,3.21620831,1784.7,1784.6,1.12078]
[1743764067676,0.00840831,1784.7,1784.6,1.12078]
[1743764068364,1.49720831,1784.7,1784.6,1.12078]
[1743764068564,4.70500831,1784.7,1784.5,4.502]
[1743764068777,4.70500831,1784.7,1784.3,8.77832]
[1743764069074,4.70500831,1784.7,1784.6,1.12078]
[1743764070075,4.70500831,1784.7,1784.3,8.77832]
[1743764070076,4.70500831,1784.7,1784.1,3.2078]
[1743764070272,4.70500831,1784.7,1784.6,1.12078]
[1743764070871,8.31e-06,1784.7,1784.6,1.12078]
[1743764071069,8.31e-06,1785.0,1784.9,1.1206]
[1743764071376,5.828,1785.5,1785.4,1.12028]
[1743764071579,5.0319,1785.7,1785.6,1.12016]
[1743764071882,5.0319,1785.7,1785.3,2.80083]
[1743764072079,5.0319,1785.7,1785.6,1.12016]
[1743764072377,5.04030831,1785.7,1785.3,7.31027831]
[1743764072575,5.04030831,1785.7,1785.6,1.12016]
[1743764072980,0.00840831,1785.7,1785.6,1.12016]
[1743764073184,8.31e-06,1785.7,1785.6,5.62116]
[1743764075982,8.31e-06,1785.7,1785.5,7.12927]
[1743764076182,3.2078,1785.6,1785.4,1.12025]
[1743764076474,1.5294,1785.5,1785.3,4.50840831]
[1743764076679,1.5294,1785.5,1785.4,1.12028]
[1743764076876,3.53893831,1785.7,1785.4,2.56004]
[1743764077076,3.2078,1785.6,1785.4,2.56004]
[1743764077273,1.5294,1785.5,1785.4,2.56004]
[1743764077474,1.5294,1785.5,1785.4,7.06004]
[1743764077777,0.88940831,1785.7,1785.4,7.06005]
[1743764077981,0.88940831,1785.7,1785.5,1.12016]
[1743764077982,2.41880831,1785.7,1785.5,1.12016]
[1743764078186,2.41880831,1785.7,1785.5,2.55996]
[1743764078775,2.41880831,1785.7,1785.4,4.5]
[1743764078776,3.2078,1785.6,1785.4,4.5]
[1743764079078,1.5294,1785.5,1785.4,4.5]
[1743764079577,1.5294,1785.5,1785.4,5.62028]
[1743764079782,1.12028,1785.4,1785.3,0.00840831]
[1743764080087,4.32808,1785.4,1785.3,0.00840831]
[1743764080284,1.12037,1785.3,1785.0,1.12048]
[1743764080481,3.2078,1785.1,1785.0,1.12053]
[1743764081081,4.074,1785.3,1785.2,1.12041]
[1743764081385,4.074,1785.3,1785.0,1.12053]
[1743764081386,4.074,1785.3,1785.1,1.12044]
[1743764081581,1.436,1785.2,1785.1,0.00840831]
[1743764081780,2.55641,1785.2,1785.1,0.00840831]
[1743764082586,5.05641,1785.2,1785.1,0.00840831]
[1743764082779,10.88441,1785.2,1785.1,0.00840831]
[1743764082992,12.56503,1785.2,1784.8,1.12065]
[1743764083184,3.2078,1784.9,1784.8,1.12065]
[1743764083375,3.2078,1785.1,1784.7,2.80172]
[1743764083580,3.2078,1785.1,1785.0,1.12053]
[1743764084483,3.2078,1785.1,1785.0,2.64063]
[1743764084884,3.2078,1785.1,1785.0,1.5201]
[1743764085084,3.2078,1785.1,1785.0,2.64063]
[1743764085482,5.7078,1785.1,1784.9,0.00840831]
[1743764085683,1.12053,1785.0,1784.9,0.00840831]
[1743764086189,4.54033,1785.0,1784.9,0.00840831]
[1743764087087,12.0492,1785.0,1784.5,1.12079]
[1743764087289,3.2078,1784.7,1784.6,1.12078]
[1743764087484,3.2078,1784.7,1784.5,1.3962]
[1743764087686,6.7478,1785.0,1784.8,1.12063]
[1743764087687,3.2078,1784.9,1784.8,1.12063]
[1743764087989,0.8662,1785.3,1785.1,1.12045]
[1743764088191,1.98656,1785.3,1785.1,1.12045]
[1743764088394,1.12053,1785.0,1784.9,40.8]
[1743764088588,1.12051,1785.1,1784.9,41.92059]
[1743764088888,3.2078,1785.2,1784.9,40.8]
[1743764089086,1.12051,1785.1,1785.0,1.5293]
[1743764089483,3.2078,1785.2,1784.9,40.8]
[1743764089484,1.12053,1785.0,1784.9,40.8]
[1743764089689,4.32833,1785.0,1784.9,40.8]
[1743764089990,3.2078,1785.0,1784.6,4.498]
[1743764090291,4.32836,1785.0,1784.8,1.12064]
[1743764090499,4.32833,1785.0,1784.9,40.8]
[1743764090687,4.32833,1785.0,1784.9,42.3293]
[1743764091283,3.2078,1785.0,1784.9,42.3293]
[1743764091495,4.32833,1785.0,1784.9,42.3293]
[1743764091991,3.2078,1785.0,1784.6,4.498]
[1743764092192,3.2078,1784.8,1784.7,1.422]
[1743764092489,4.32846,1784.8,1784.7,42.222]
[1743764092696,4.32846,1784.8,1784.7,40.8]
[1743764092896,1.12072,1784.7,1784.6,4.498]
[1743764093090,3.2078,1784.8,1784.6,4.498]
[1743764093284,3.2078,1784.8,1784.6,45.298]
[1743764093589,3.2078,1784.8,1784.7,2.54272]
[1743764093895,3.2078,1784.8,1784.7,1.422]
[1743764094086,4.32846,1784.8,1784.7,1.422]
[1743764094289,4.32846,1784.8,1784.7,40.8]
[1743764094492,4.32846,1784.8,1784.7,42.2447]
[1743764094790,4.32846,1784.8,1784.7,40.8]
[1743764095193,1.12085,1784.5,1784.2,3.2078]
[1743764095391,1.12083,1784.6,1784.3,5.9427]
[1743764095690,1.12085,1784.5,1784.4,1.4447]
[1743764095892,3.3252,1784.7,1784.4,1.4447]
[1743764096099,1.12082,1784.6,1784.4,1.4447]
[1743764096397,1.12091,1784.4,1784.3,4.498]
[1743764096598,4.32871,1784.4,1784.3,4.498]
[1743764096793,4.32871,1784.4,1784.1,1.12108]
[1743764097095,1.4024,1784.3,1784.1,1.12109]
[1743764097299,1.4024,1784.3,1784.2,1.4447]
[1743764098897,1.4024,1784.3,1784.2,2.56574]
[1743764099101,3.21620831,1784.4,1784.2,2.56574]
[1743764099599,4.64840831,1784.4,1784.2,2.56574]
[1743764099898,3.21620831,1784.4,1784.3,46.41897]
[1743764100094,3.21620831,1784.4,1784.3,45.298]
[1743764100500,4.64840831,1784.4,1784.3,46.41897]
[1743764100696,4.64840831,1784.4,1784.3,45.298]
[1743764100896,4.64840831,1784.4,1784.3,46.41897]
[1743764101598,0.00840831,1784.4,1784.3,46.41897]
[1743764101798,0.00840831,1784.4,1784.3,52.12677]
[1743764101989,3.2078,1785.3,1784.9,1.1206]
[1743764102193,3.2078,1785.1,1785.0,1.4693]
[1743764102394,3.2078,1785.1,1784.5,4.498]
[1743764102593,3.2078,1784.9,1784.6,1.4693]
[1743764102901,2.061,1785.0,1784.6,4.27116]
[1743764103197,1.52120831,1784.9,1784.7,1.12071]
[1743764103396,1.12076,1784.7,1784.4,1.12088]
[1743764103596,1.4557,1784.6,1784.4,1.12088]
[1743764104100,3.21620831,1784.9,1784.4,2.80228]
[1743764104299,1.4557,1784.8,1784.6,1.12072]
[1743764104495,1.4557,1784.8,1784.7,1.12072]
[1743764105401,1.4557,1784.8,1784.6,1.12076]
[1743764105703,4.6635,1784.8,1784.7,1.12072]
[1743764107102,7.1635,1784.8,1784.3,45.298]
[1743764107297,4.32868,1784.5,1784.3,1.12093]
[1743764107602,1.508,1784.4,1784.2,1.47620831]
[1743764107804,3.6344,1784.4,1784.3,1.12097]
[1743764108002,1.508,1784.4,1784.3,1.12097]
[1743764108207,3.2078,1784.7,1784.3,1.12097]
[1743764108208,5.3342,1784.7,1784.3,2.80244]
[1743764108405,1.508,1784.6,1784.4,1.12086]
[1743764108701,4.32866,1784.5,1784.3,1.12093]
[1743764108906,1.508,1784.4,1784.3,1.12093]
[1743764109104,5.3342,1784.7,1784.6,1.12078]
[1743764109304,2.1264,1784.7,1784.6,1.12078]
[1743764109807,0.00840831,1784.9,1784.8,1.12066]
[1743764110010,0.00840831,1784.9,1784.7,1.12066]
[1743764110206,0.00840831,1784.9,1784.4,4.497]
[1743764110207,4.32851,1784.8,1784.4,4.497]
[1743764110403,1.4046,1784.7,1784.5,1.12085]
[1743764110604,3.2078,1784.6,1784.5,2.63445]
[1743764110812,3.2078,1784.6,1784.5,1.5136]
[1743764111011,4.6124,1784.6,1784.5,1.5136]
[1743764111909,4.6124,1784.6,1784.4,4.497]
[1743764111910,6.83363,1784.6,1784.4,4.497]
[1743764112107,5.7128,1784.6,1784.3,1.5136]
[1743764112303,3.2078,1784.4,1784.2,40.80840831]
[1743764112508,1.4046,1784.3,1784.2,0.00840831]
[1743764112711,2.52557,1784.3,1784.2,0.00840831]
[1743764112913,1.4046,1784.3,1784.2,0.00840831]
[1743764113610,1.1004,1784.6,1784.5,1.12085]
[1743764113810,1.1004,1784.6,1784.4,5.61786]
[1743764114005,1.4322,1784.5,1784.4,4.497]
[1743764114206,1.4322,1784.5,1784.2,1.42890831]
[1743764114506,2.5531,1784.5,1784.2,2.54991831]
[1743764114712,3.2078,1784.4,1784.2,1.42890831]
[1743764114913,1.4322,1784.3,1784.2,1.12944831]
[1743764115109,3.2078,1784.4,1784.2,1.12944831]
[1743764115308,4.32871,1784.4,1784.2,40.80840831]
[1743764115506,3.2078,1784.4,1784.3,1.12097]
[1743764115809,4.64,1784.4,1784.2,40.80840831]
[1743764116206,1.12097,1784.3,1784.2,40.80840831]
[1743764116412,2.80271,1784.2,1783.5,2.8037]
[1743764116610,3.2078,1783.9,1783.6,2.57857]
[1743764116813,3.2078,1783.7,1783.5,1.12144]
[1743764117015,1.4561,1783.6,1783.5,1.12144]
[1743764117315,1.4561,1783.6,1783.5,1.4572]
[1743764117513,1.4561,1783.6,1782.9,8.78167928]
[1743764117819,3.2078,1783.3,1783.2,1.12166]
[1743764118316,3.2078,1783.3,1783.0,1.4572]
[1743764118513,1.4561,1783.2,1783.0,1.12177]
[1743764118718,1.4561,1783.2,1783.0,1.12179]
[1743764119018,1.4561,1783.2,1782.9,1.12185]
[1743764119019,3.2078,1783.1,1782.9,1.12185]
[1743764119214,1.5087,1783.0,1782.9,1.12185]
[1743764119417,1.0523,1783.4,1783.3,1.1216]
[1743764119625,4.2329,1783.5,1783.4,1.12154]
[1743764119918,2.5338,1783.5,1783.4,1.12154]
[1743764120115,2.5338,1783.5,1783.4,1.13668059]
[1743764120420,2.5338,1783.5,1783.4,40.81514059]
[1743764120720,6.86308,1783.5,1783.4,40.81514059]
[1743764121114,6.86308,1783.5,1783.4,0.03023596]
[1743764121313,5.7416,1783.5,1783.4,0.03023596]
[1743764121512,5.7416,1783.5,1783.4,40.84533653]
[1743764121707,6.86308,1783.5,1783.4,0.04533653]
[1743764122025,9.36308,1783.5,1783.4,0.0604371]
[1743764122813,1.04602233,1783.4,1783.2,1.12165]
[1743764123119,1.013,1783.4,1783.0,6.01228]
[1743764123311,1.013,1783.4,1783.3,41.9216]
[1743764123616,4.2329,1783.5,1783.4,1.12154]
[1743764124016,3.2078,1783.5,1783.4,1.12154]
[1743764124215,1.02140831,1783.7,1783.4,6.0063]
[1743764124416,0.00840831,1783.7,1783.6,1.12141]
[1743764124618,0.00840831,1783.7,1783.6,4.32921]
[1743764124812,1.4271,1784.0,1783.8,1.12126]
[1743764125008,3.2078,1783.9,1783.8,1.12126]
[1743764125219,5.828,1783.8,1782.6,8.8188]
[1743764125517,4.32977,1782.8,1782.4,1.12213]
[1743764125814,3.2078,1782.6,1782.4,1.12212]
[1743764126018,1.4271,1782.5,1782.1,3.2078]
[1743764126216,1.4271,1782.5,1782.2,1.4717]
[1743764126518,3.2078,1782.4,1781.9,7.7048]
[1743764126716,1.1223,1782.2,1782.0,1.4717]
[1743764126907,1.4271,1782.1,1781.7,8.78167928]
[1743764127213,1.4271,1782.1,1781.7,11.98947928]
[1743764127419,1.4271,1782.1,1781.8,2.59424]
[1743764127713,1.4271,1782.1,1781.9,1.4717]
[1743764128217,4.33024,1782.0,1781.7,8.78167928]
[1743764128415,3.2078,1781.8,1781.7,10.22217928]
[1743764128809,3.2078,1781.8,1781.7,1.4405]
[1743764129118,3.2078,1781.8,1781.4,3.2078]
[1743764129321,1.4366,1781.7,1781.5,1.4405]
[1743764130319,3.2078,1781.6,1780.9,8.78167928]
[1743764130506,1.12289,1781.3,1780.9,8.78167928]
[1743764130711,1.4366,1781.2,1781.0,3.2078]
[1743764130920,0.00840831,1781.4,1781.1,1.4405]
[1743764131122,0.00840831,1781.4,1781.2,3.2078]
[1743764131320,1.13120831,1781.4,1781.3,1.4676]
[1743764131525,1.1229,1781.3,1781.0,4.574]
[1743764131721,4.6065,1781.5,1781.1,1.4676]
[1743764131722,3.2078,1781.5,1781.1,1.4676]
[1743764132022,1.12275,1781.5,1781.2,45.38]
[1743764132221,3.2078,1781.7,1781.3,1.4676]
[1743764132519,1.3987,1781.6,1781.4,4.3306]
[1743764132723,3.2078,1781.7,1781.5,1.4676]
[1743764133021,3.2078,1781.7,1781.5,6.0446]
[1743764133022,0.00840831,1781.7,1781.5,6.0446]
[1743764133214,0.00840831,1781.7,1781.5,10.37513]
[1743764133414,0.00840831,1781.7,1781.6,1.12267]
[1743764134526,0.00840831,1781.7,1781.6,4.33047]
[1743764135422,8.31e-06,1781.7,1781.6,6.83047]
[1743764135619,8.31e-06,1781.7,1781.6,7.39207]
[1743764136321,8.31e-06,1781.7,1781.6,6.83047]
[1743764136922,8.31e-06,1781.7,1781.6,11.38847]
[1743764138121,8.31e-06,1781.7,1781.6,8.88047]
[1743764138515,8.31e-06,1781.7,1781.6,11.38047]
[1743764138715,8.31e-06,1781.7,1781.6,8.88047]
[1743764139121,8.31e-06,1781.7,1781.6,5.67267]
[1743764139418,8.31e-06,1781.7,1781.5,2.59029]
[1743764139625,8.31e-06,1781.7,1781.6,5.66467]
[1743764139925,8.31e-06,1781.7,1781.6,4.542]
[1743764140318,8.31e-06,1781.7,1781.6,46.46467]
[1743764140518,8.31e-06,1781.7,1781.6,41.92267]
[1743764140718,8.31e-06,1781.7,1781.6,46.45967]
[1743764141825,8.31e-06,1781.7,1781.6,48.95967]
[1743764142225,8.31e-06,1781.7,1781.6,50.00507]
[1743764143525,8.31e-06,1781.7,1781.6,55.97107]
[1743764143824,8.31e-06,1781.7,1781.6,57.03187]
[1743764144024,8.31e-06,1781.7,1781.6,64.35215587]
[1743764144521,2.0916,1782.9,1782.8,1.12192]
[1743764144522,1.0588,1782.9,1782.8,1.12192]
[1743764144822,1.0588,1782.9,1781.6,22.42948587]
[1743764144823,4.3152,1783.4,1783.0,1.12176]
[1743764145020,3.59623,1783.3,1782.9,1.12185]
[1743764145423,2.4746,1783.3,1783.0,1.12175]
[1743764145723,3.60462831,1783.3,1782.9,1.48010831]
[1743764145928,1.12167,1783.2,1782.9,2.60191831]
[1743764146130,1.434,1783.1,1783.0,1.12179]
[1743764146429,1.434,1783.1,1782.9,2.60192831]
[1743764146724,1.00960831,1783.3,1782.9,4.68790831]
[1743764146924,1.44240831,1783.3,1783.2,1.12166]
[1743764147230,1.44240831,1783.3,1783.2,4.52]
[1743764147523,1.44240831,1783.3,1783.2,5.64166]
[1743764147725,1.44240831,1783.3,1783.2,4.52]
[1743764148823,1.44240831,1783.3,1783.2,5.64166]
[1743764149619,1.44240831,1783.3,1783.2,4.52]
[1743764149818,1.44240831,1783.3,1783.2,5.64166]
[1743764150024,1.44240831,1783.3,1783.2,4.52]
[1743764150224,1.44240831,1783.3,1783.0,1.12177]
[1743764150537,2.54560831,1783.3,1783.0,5.62278]
[1743764150727,2.54560831,1783.3,1783.0,4.501]
[1743764150922,2.54560831,1783.3,1783.2,1.12166]
[1743764151118,2.54560831,1783.3,1783.1,2.5197]
[1743764151326,2.54560831,1783.3,1783.2,1.12166]
[1743764151725,1.11160831,1783.3,1783.2,1.12166]
[1743764151931,0.00840831,1783.3,1783.2,4.32946]
[1743764152435,8.31e-06,1783.3,1783.2,6.82946]
[1743764152826,1.3969,1784.0,1783.9,1.12122]
[1743764153030,1.0967,1784.2,1784.1,1.1211]
[1743764153222,1.042,1784.4,1784.2,1.12098]
[1743764153532,1.042,1784.4,1784.2,5.62202]
[1743764153730,1.3969,1784.3,1784.2,7.08564]
[1743764154131,1.3969,1784.3,1784.2,4.501]
[1743764154434,1.3969,1784.3,1784.2,5.62204]
[1743764154634,1.3969,1784.3,1784.2,7.08564]
[1743764155138,0.00840831,1784.4,1784.3,1.12097]
[1743764155830,0.00840831,1784.4,1784.3,3.62097]
[1743764155831,8.31e-06,1784.4,1784.3,3.62097]
[1743764156021,8.31e-06,1784.4,1784.3,10.59614539]
[1743764156227,1.0485,1785.4,1785.2,1.12038]
[1743764156228,2.1346,1785.4,1785.2,1.12038]
[1743764156427,3.2078,1785.6,1785.3,1.1203]
[1743764156630,1.442,1785.5,1785.3,1.4961]
[1743764156928,1.442,1785.5,1785.3,2.61641]
[1743764157127,1.442,1785.5,1785.2,4.5]
[1743764157435,1.442,1785.5,1785.2,4.50840831]
[1743764157734,1.442,1785.5,1785.3,1.12032]
[1743764158122,1.442,1785.5,1785.4,1.12028]
[1743764158725,0.00840831,1785.6,1785.5,1.12022]
[1743764158932,0.00840831,1785.6,1785.5,5.61822]
[1743764159236,0.00840831,1785.6,1785.5,10.32862]
[1743764159434,0.00840831,1785.6,1785.5,6.0006]
[1743764159730,0.00840831,1785.6,1785.5,5.61822]
[1743764159935,0.00840831,1785.6,1785.5,7.12082]
[1743764160434,0.00840831,1785.6,1785.5,5.61822]
[1743764160632,0.00840831,1785.6,1785.5,4.498]
[1743764160936,0.00840831,1785.6,1785.5,5.61822]
[1743764161637,0.00840831,1785.6,1785.5,7.14442]
[1743764162131,0.00840831,1785.6,1785.5,1.12022]
[1743764162329,0.00840831,1785.6,1785.5,5.61622]
[1743764162524,0.00840831,1785.6,1785.5,8.82402]
[1743764162734,8.31e-06,1785.6,1785.5,11.32402]
[1743764163332,8.31e-06,1785.6,1785.5,12.85022]
[1743764163533,8.31e-06,1785.6,1785.5,53.65022]
[1743764163731,4.2893,1786.5,1786.3,1.1197]
[1743764163935,1.0815,1786.5,1786.3,4.496]
[1743764164237,3.2078,1786.4,1786.3,4.496]
[1743764164538,3.2078,1786.4,1785.8,4.734]
[1743764165036,0.00840831,1786.3,1785.9,1.12834831]
[1743764165239,0.00840831,1786.3,1786.0,1.11989]
[1743764165438,0.00840831,1786.3,1785.9,5.62433831]
[1743764165640,3.2078,1786.2,1785.9,5.62433831]
[1743764165840,3.2078,1786.2,1786.0,1.11989]
[1743764166037,3.2078,1786.2,1785.9,0.00840831]
[1743764166237,3.2078,1786.0,1785.9,0.00840831]
[1743764166541,0.9833,1786.2,1785.9,0.00840831]
[1743764166743,0.9833,1786.2,1785.9,1.12834831]
[1743764166941,1.4622,1786.1,1785.9,0.00840831]
[1743764167139,1.4622,1786.1,1786.0,1.11991]
[1743764167340,1.4622,1786.1,1785.9,0.00840831]
[1743764167540,1.4622,1786.1,1786.0,5.61491]
[1743764168443,0.9833,1786.2,1786.1,1.11984]